bitfinex/quotes_SOLUSD_20251007
["timestamp","ask_amount","ask_price","bid_price","bid_amount"]
[1759868738981,0.1,223.43,223.42,118.13510788]
[1759868743285,0.67,223.48,223.44,79.1]
[1759868743485,0.67,223.48,223.44,110.4]
[1759868743689,0.67,223.47,223.44,110.4]
[1759868744774,0.67,223.47,223.45,4.47527411]
[1759868746084,3.13923285,223.49,223.45,4.47527411]
[1759868746382,0.67,223.48,223.45,5.19527411]
[1759868746590,0.67,223.48,223.45,35.75527411]
[1759868746789,0.7,223.48,223.45,35.75527411]
[1759868747168,2.46923285,223.49,223.45,35.75527411]
[1759868747488,2.46923285,223.49,223.46,0.7]
[1759868747869,2.46923285,223.49,223.45,4.47527411]
[1759868748074,2.46923285,223.49,223.47,0.7]
[1759868748276,2.46923285,223.49,223.46,0.7]
[1759868748474,2.56923285,223.5,223.46,0.7]
[1759868748676,0.1,223.5,223.47,3.16923285]
[1759868748986,0.1,223.5,223.48,0.7]
[1759868749362,0.1,223.5,223.48,79.8]
[1759868750006,0.8,223.5,223.48,79.1]
[1759868750475,0.1,223.5,223.49,7.64370598]
[1759868750680,0.1,223.52,223.51,79.0]
[1759868751080,0.1,223.52,223.51,79.7]
[1759868752070,0.1,223.52,223.51,84.17407274]
[1759868752771,0.1,223.52,223.51,229.4197808]
[1759868755192,1e-08,223.52,223.51,226.95054795]
[1759868755385,1e-08,223.52,223.51,229.4197808]
[1759868755561,0.1,223.56,223.55,10.87647521]
[1759868755765,0.1,223.58,223.55,10.87647521]
[1759868755766,0.1,223.58,223.57,20.8]
[1759868755993,0.1,223.58,223.57,33.74923285]
[1759868756200,0.1,223.58,223.57,34.44923285]
[1759868756800,0.1,223.58,223.57,38.92210488]
[1759868757584,1e-08,223.58,223.57,49.79858009]
[1759868759976,0.1,223.62,223.6,20.8]
[1759868760282,0.1,223.62,223.61,33.74923285]
[1759868760585,0.1,223.62,223.61,34.44923285]
[1759868760784,1e-08,223.62,223.61,45.32570806]
[1759868760971,1e-08,223.62,223.61,44.62570806]
[1759868761171,1e-08,223.62,223.61,45.32570806]
[1759868761373,1e-08,223.62,223.61,49.79777997]
[1759868761976,1e-08,223.62,223.61,5.17207191]
[1759868762201,1e-08,223.62,223.61,70.57777997]
[1759868765075,0.70000001,223.62,223.61,67.40854712]
[1759868765277,1e-08,223.62,223.61,67.40854712]
[1759868765478,1e-08,223.62,223.61,70.57777997]
[1759868767198,0.1,223.66,223.61,70.57777997]
[1759868767199,0.1,223.66,223.65,78.09999999]
[1759868768886,1e-08,223.66,223.65,112.94570805]
[1759868769310,1e-08,223.66,223.65,131.05610284]
[1759868771008,0.1,223.73,223.69,31.67647521]
[1759868771211,0.1,223.73,223.72,6.9391059]
[1759868771514,0.1,223.73,223.72,4.46987305]
[1759868774109,0.1,223.73,223.71,4.47007286]
[1759868775301,0.1,223.73,223.71,6.93930571]
[1759868776314,0.1,223.73,223.72,0.7]
[1759868776714,0.1,223.73,223.72,3.16923285]
[1759868777104,0.1,223.73,223.72,2.46923285]
[1759868777709,0.1,223.73,223.72,3.13923285]
[1759868777902,0.1,223.73,223.72,2.46923285]
[1759868778513,0.1,223.73,223.72,6.9391059]
[1759868779098,0.1,223.73,223.72,7.6091059]
[1759868779817,0.1,223.73,223.72,6.9391059]
[1759868780197,0.1,223.73,223.72,7.6091059]
[1759868781140,1e-08,223.73,223.72,6.71476621]
[1759868788926,1e-08,223.73,223.72,19.38091055]
[1759868792023,2.23489317,223.73,223.72,4.46987305]
[1759868792908,0.66000001,223.73,223.7,11.17552439]
[1759868793298,1e-08,223.73,223.7,11.17552439]
[1759868793501,0.66000001,223.73,223.7,11.17552439]
[1759868793727,1e-08,223.73,223.71,1.57489316]
[1759868794027,1e-08,223.73,223.72,1.57489316]
[1759868794233,1e-08,223.73,223.72,2.24489316]
[1759868794406,1e-08,223.73,223.72,33.46489316]
[1759868794802,1e-08,223.73,223.72,32.79489316]
[1759868795020,1e-08,223.73,223.72,35.68987305]
[1759868795417,1e-08,223.73,223.72,37.26476621]
[1759868799224,1e-08,223.73,223.72,37.98476621]
[1759868799928,1e-08,223.73,223.72,36.40987305]
[1759868800129,1e-08,223.73,223.72,37.98476621]
[1759868806829,1e-08,223.73,223.72,35.68987305]
[1759868807026,1e-08,223.73,223.72,37.26476621]
[1759868809131,1e-08,223.73,223.72,37.93476621]
[1759868809525,1e-08,223.73,223.72,37.26476621]
[1759868809722,1e-08,223.73,223.72,4.46987305]
[1759868810031,1e-08,223.73,223.72,37.26476621]
[1759868810221,1e-08,223.73,223.72,35.68987305]
[1759868810928,1e-08,223.73,223.72,37.26476621]
[1759868811536,1e-08,223.73,223.72,37.93476621]
[1759868812053,1e-08,223.73,223.72,37.26476621]
[1759868812751,1e-08,223.73,223.72,6.04476621]
[1759868813151,1e-08,223.73,223.72,37.26476621]
[1759868813356,1e-08,223.73,223.72,6.04476621]
[1759868814045,1e-08,223.73,223.72,37.26476621]
[1759868814846,1e-08,223.73,223.72,4.46987305]
[1759868815347,1e-08,223.73,223.72,35.68987305]
[1759868815651,1e-08,223.73,223.72,37.26476621]
[1759868816765,1e-08,223.73,223.72,35.68987305]
[1759868817532,1e-08,223.73,223.72,4.46987305]
[1759868820958,2.23489317,223.73,223.66,4.47107216]
[1759868821141,1.57489316,223.69,223.65,44.85912272]
[1759868821452,0.66,223.68,223.65,49.33037405]
[1759868821660,2.23489316,223.7,223.65,50.00037405]
[1759868821835,0.66,223.69,223.65,49.33037405]
[1759868822162,2.23489316,223.68,223.65,18.11037405]
[1759868822334,0.66,223.67,223.65,13.63912272]
[1759868822534,1.57489316,223.68,223.62,10.87647521]
[1759868822734,1.57489316,223.66,223.62,13.52828387]
[1759868822956,2.23489316,223.65,223.61,31.22]
[1759868823354,2.23489316,223.65,223.61,31.89]
[1759868823653,1.57489316,223.65,223.61,31.89]
[1759868823852,1.57489316,223.66,223.62,4.47187192]
[1759868824057,2.23489316,223.66,223.62,4.47187192]
[1759868825053,2.23489316,223.66,223.62,5.14187192]
[1759868825259,1.57489316,223.66,223.62,5.14187192]
[1759868826539,1.57489316,223.66,223.62,83.24187191]
[1759868827264,1.57489316,223.66,223.62,96.4469041]
[1759868828866,1.57489316,223.69,223.63,33.46489316]
[1759868829061,0.66000001,223.73,223.66,1.57489316]
[1759868829287,1.57489316,223.72,223.67,0.67]
[1759868829440,1.57489316,223.72,223.68,0.67]
[1759868829644,1e-08,223.73,223.68,80.34489315]
[1759868830063,1e-08,223.73,223.69,0.67]
[1759868830767,1e-08,223.73,223.7,0.67]
[1759868832455,1e-08,223.73,223.71,0.67]
[1759868832772,1.57489317,223.73,223.71,0.67]
[1759868834472,1e-08,223.73,223.72,0.67]
[1759868835163,1e-08,223.73,223.71,82.57007111]
[1759868835467,1e-08,223.73,223.71,83.24007111]
[1759868835964,1e-08,223.73,223.72,0.67]
[1759868836980,1e-08,223.73,223.72,5.13987305]
[1759868838260,1e-08,223.73,223.72,84.8147662]
[1759868838769,1e-08,223.73,223.72,83.23987304]
[1759868839268,1e-08,223.73,223.72,84.8147662]
[1759868840395,1e-08,223.73,223.72,83.23987304]
[1759868840683,1e-08,223.73,223.72,116.0347662]
[1759868842372,1e-08,223.73,223.72,114.45987304]
[1759868842687,1e-08,223.73,223.72,37.93476621]
[1759868843072,1e-08,223.73,223.72,38.82060827]
[1759868845595,1e-08,223.73,223.72,25.26987305]
[1759868845765,1e-08,223.73,223.72,56.48987305]
[1759868846173,1e-08,223.73,223.72,57.13987305]
[1759868846798,1e-08,223.73,223.72,56.48987305]
[1759868848772,1e-08,223.73,223.72,57.13987305]
[1759868848974,1e-08,223.73,223.72,35.68987305]
[1759868849183,1e-08,223.73,223.72,4.46987305]
[1759868851285,1e-08,223.73,223.72,7.58060827]
[1759868851479,1e-08,223.73,223.72,6.93060827]
[1759868852584,1e-08,223.73,223.72,4.46987305]
[1759868854696,1e-08,223.73,223.69,20.8]
[1759868854886,1e-08,223.73,223.7,35.67022954]
[1759868855073,1e-08,223.73,223.7,36.32022954]
[1759868856079,1e-08,223.73,223.7,36.30008314]
[1759868856390,1e-08,223.73,223.7,49.93650007]
[1759868857179,1e-08,223.73,223.7,49.28650007]
[1759868857393,1e-08,223.73,223.71,0.65]
[1759868857878,1e-08,223.73,223.7,49.93650007]
[1759868858696,1e-08,223.73,223.7,46.82576485]
[1759868858886,1e-08,223.73,223.71,0.65]
[1759868859072,1e-08,223.73,223.71,3.11073522]
[1759868859276,1e-08,223.73,223.72,0.65]
[1759868859778,1e-08,223.73,223.72,34.31073522]
[1759868860087,1e-08,223.73,223.72,38.78060827]
[1759868861079,1e-08,223.73,223.72,36.31987305]
[1759868861276,1e-08,223.73,223.72,38.78060827]
[1759868867525,1e-08,223.73,223.72,36.31987305]
[1759868867713,1e-08,223.73,223.72,38.78060827]
[1759868871101,0.71,223.78,223.75,4.46927374]
[1759868871302,0.71,223.78,223.75,113.76927372]
[1759868871884,0.71,223.78,223.75,116.23000894]
[1759868872695,4.46770948,223.83,223.75,116.23000894]
[1759868872903,2.46073522,223.81,223.75,116.23000894]
[1759868873098,0.71,223.8,223.75,116.23000894]
[1759868873390,0.71,223.79,223.75,116.23000894]
[1759868874017,2.46073522,223.8,223.75,116.23000894]
[1759868874221,0.71,223.78,223.75,116.23000894]
[1759868876018,0.71,223.78,223.75,38.13000896]
[1759868876714,0.71,223.78,223.75,35.66927374]
[1759868876918,2.46073522,223.8,223.75,4.46927374]
[1759868877121,0.71,223.77,223.75,4.46927374]
[1759868878002,0.71,223.79,223.75,4.46927374]
[1759868878217,0.71,223.78,223.75,4.46927374]
[1759868879511,0.71,223.79,223.75,4.46927374]
[1759868880107,0.71,223.79,223.75,5.13927374]
[1759868881294,2.46073522,223.8,223.76,0.67]
[1759868881844,3.17073522,223.8,223.75,4.46927374]
[1759868882122,0.71,223.79,223.75,5.13927374]
[1759868882311,2.46073522,223.8,223.75,4.46927374]
[1759868882517,3.17073522,223.8,223.76,0.67]
[1759868883309,2.46073522,223.81,223.77,5.13887429]
[1759868883898,3.17073522,223.81,223.77,5.13887429]
[1759868884114,3.17073522,223.81,223.77,4.46887429]
[1759868884317,0.71,223.8,223.77,4.46887429]
[1759868884818,3.17073522,223.8,223.77,4.46887429]
[1759868885319,3.17073522,223.8,223.76,4.469074]
[1759868885519,3.17073522,223.8,223.76,5.139074]
[1759868886725,3.01103411,223.84,223.77,0.67]
[1759868886998,3.17073522,223.85,223.77,78.76999998]
[1759868887224,3.17073522,223.85,223.8,4.46827524]
[1759868887432,3.17073522,223.85,223.8,5.13827524]
[1759868887718,3.17073522,223.84,223.8,5.13827524]
[1759868888409,0.71,223.84,223.8,5.13827524]
[1759868888612,3.17073522,223.84,223.8,5.13827524]
[1759868888906,3.17073522,223.83,223.79,4.46845313]
[1759868889107,3.17073522,223.83,223.79,5.13845313]
[1759868889306,3.17073522,223.83,223.79,0.67]
[1759868889504,3.17073522,223.82,223.77,83.23885306]
[1759868889710,0.71,223.82,223.77,83.23885306]
[1759868889918,0.71,223.84,223.78,0.67]
[1759868890309,2.46073522,223.82,223.78,0.67]
[1759868890610,2.46073522,223.82,223.79,0.67]
[1759868891432,2.46073522,223.83,223.8,4.46827524]
[1759868891607,2.46073522,223.84,223.81,0.67]
[1759868891806,2.46073522,223.84,223.8,4.46827524]
[1759868892128,2.46073522,223.84,223.81,0.67]
[1759868892302,2.46073522,223.84,223.82,0.67]
[1759868892502,2.46073522,223.84,223.82,78.76999998]
[1759868893224,8.1873401,223.87,223.82,4.46781904]
[1759868893225,0.71,223.87,223.82,4.46781904]
[1759868893428,2.46073522,223.87,223.83,0.67]
[1759868893618,2.46073522,223.88,223.84,0.67]
[1759868893816,2.46073522,223.88,223.82,4.46781904]
[1759868894018,2.46073522,223.88,223.83,0.67]
[1759868894334,2.56073522,223.89,223.83,3.13073522]
[1759868894631,2.56073522,223.89,223.84,0.67]
[1759868894924,0.1,223.89,223.85,4.46727719]
[1759868895104,0.1,223.89,223.86,0.67]
[1759868895521,0.1,223.89,223.85,4.46727719]
[1759868895723,0.1,223.89,223.87,0.67]
[1759868896114,0.1,223.89,223.88,0.67]
[1759868896527,2.06073522,223.91,223.88,0.67]
[1759868896730,2.06073522,223.91,223.88,0.65]
[1759868896914,2.06073522,223.91,223.85,18.09620539]
[1759868897120,2.06073522,223.91,223.89,0.65]
[1759868897328,2.06073522,223.91,223.87,0.65]
[1759868897639,5.15550981,223.94,223.88,0.65]
[1759868897816,2.46073522,223.93,223.88,0.65]
[1759868898012,2.46073522,223.93,223.89,0.65]
[1759868898620,3.15073522,223.93,223.89,0.65]
[1759868899830,4.46550981,223.94,223.89,0.65]
[1759868900136,2.46073522,223.93,223.89,0.65]
[1759868900831,2.46073522,223.93,223.89,78.74999998]
[1759868902610,2.46073522,223.93,223.9,0.65]
[1759868902824,2.46073522,223.92,223.89,78.09999998]
[1759868903038,1.5732611,223.91,223.89,78.09999998]
[1759868905332,1.5732611,223.91,223.89,78.74999998]
[1759868905538,1.5732611,223.91,223.89,78.09999998]
[1759868906451,1.5732611,223.91,223.89,78.74999998]
[1759868907041,4.46574864,223.93,223.9,0.65]
[1759868907337,1.5732611,223.91,223.89,78.09999998]
[1759868907646,5.15574864,223.93,223.89,78.74999998]
[1759868907820,5.15574864,223.93,223.89,78.09999998]
[1759868907821,1.5732611,223.9,223.89,78.09999998]
[1759868908216,4.46574864,223.93,223.89,78.09999998]
[1759868908536,1.5732611,223.9,223.89,78.09999998]
[1759868908732,4.46574864,223.93,223.89,78.09999998]
[1759868909039,1.5732611,223.9,223.89,78.09999998]
[1759868911915,1.5732611,223.91,223.89,78.09999998]
[1759868912116,1.5732611,223.9,223.89,78.09999998]
[1759868912926,2.2632611,223.9,223.85,4.46725802]
[1759868913158,4.46600666,223.92,223.85,5.11725802]
[1759868913337,1.5732611,223.89,223.86,0.65]
[1759868914053,4.46616489,223.91,223.87,0.65]
[1759868914221,1.5732611,223.89,223.87,0.65]
[1759868915061,1.5732611,223.89,223.85,0.65]
[1759868915217,1.5732611,223.88,223.85,0.65]
[1759868915544,4.4663825,223.9,223.86,0.65]
[1759868915933,1.5732611,223.89,223.84,4.46747676]
[1759868916133,1.5732611,223.89,223.85,0.65]
[1759868916542,0.69,223.92,223.86,0.65]
[1759868916738,1.5732611,223.89,223.86,0.65]
[1759868916962,1.5732611,223.89,223.87,0.65]
[1759868917165,1.5732611,223.89,223.85,5.11717798]
[1759868917340,1.5732611,223.89,223.86,0.65]
[1759868917845,1.5732611,223.88,223.84,0.65]
[1759868918158,1.5732611,223.88,223.85,0.65]
[1759868918335,1.5732611,223.88,223.86,0.65]
[1759868918739,5.15615711,223.91,223.83,4.46767636]
[1759868918941,1.5732611,223.88,223.84,0.65]
[1759868919459,1.5732611,223.89,223.85,4.46727719]
[1759868919648,1.5732611,223.89,223.86,0.71]
[1759868919853,1.5732611,223.91,223.86,0.71]
[1759868920069,1.5732611,223.89,223.86,0.71]
[1759868920259,0.67,223.91,223.86,0.71]
[1759868920442,0.67,223.91,223.87,0.71]
[1759868920643,1.5732611,223.91,223.88,0.71]
[1759868920948,0.67,223.92,223.88,0.71]
[1759868921147,1.5732611,223.9,223.85,4.46727719]
[1759868921363,1.5732611,223.9,223.86,0.71]
[1759868921566,1.5732611,223.89,223.87,0.71]
[1759868921943,5.13604376,223.92,223.87,0.71]
[1759868922138,4.46604376,223.92,223.87,0.71]
[1759868922337,1.5732611,223.89,223.87,0.71]
[1759868922656,1.5732611,223.91,223.88,0.71]
[1759868922856,22.4732611,223.96,223.9,1.5732611]
[1759868923041,22.4732611,223.96,223.9,0.71]
[1759868923042,1.5732611,223.94,223.9,0.71]
[1759868923363,21.57,223.96,223.91,0.71]
[1759868923565,1.5732611,223.94,223.92,0.71]
[1759868923753,0.1,223.96,223.93,0.71]
[1759868923955,1.5732611,223.95,223.94,0.71]
[1759868924267,1.5732611,223.95,223.91,0.71]
[1759868924454,1.5732611,223.95,223.92,0.71]
[1759868924655,0.1,223.96,223.92,0.71]
[1759868924963,1.5732611,223.94,223.92,0.71]
[1759868925743,0.1,223.96,223.92,0.71]
[1759868925945,1.5732611,223.94,223.92,0.71]
[1759868926451,5.1353783,223.95,223.9,0.71]
[1759868926646,1.5732611,223.93,223.9,0.71]
[1759868926848,1.5732611,223.93,223.91,0.71]
[1759868927053,1.5732611,223.94,223.91,0.71]
[1759868927466,4.56509537,223.96,223.91,0.71]
[1759868927656,5.25509537,223.96,223.91,0.71]
[1759868927859,1.5732611,223.94,223.91,0.71]
[1759868929149,1.5732611,223.94,223.9,4.46618808]
[1759868929150,1.5732611,223.94,223.88,6.03993967]
[1759868929348,1.5732611,223.94,223.91,0.71]
[1759868929949,1.5732611,223.93,223.88,4.46667857]
[1759868930169,1.5732611,223.93,223.89,0.71]
[1759868930544,1.5732611,223.92,223.9,0.71]
[1759868930943,4.46530044,223.95,223.9,0.71]
[1759868931248,1.5732611,223.93,223.91,0.71]
[1759868931472,0.69,223.95,223.91,0.71]
[1759868931669,1.5732611,223.93,223.91,0.71]
[1759868931881,1.5732611,223.92,223.91,0.71]
[1759868932174,0.69,223.95,223.9,0.71]
[1759868932477,1.5732611,223.92,223.89,5.17628159]
[1759868932771,1.5732611,223.9,223.84,0.71]
[1759868932975,1.5732611,223.88,223.84,0.71]
[1759868933855,0.69,223.91,223.84,5.17747676]
[1759868934061,1.5732611,223.88,223.85,0.71]
[1759868934762,5.15613096,223.91,223.85,0.71]
[1759868934945,1.5732611,223.88,223.85,0.71]
[1759868935769,1.5732611,223.88,223.86,4.46707763]
[1759868935966,1.5732611,223.88,223.87,0.71]
[1759868936366,1.5732611,223.88,223.86,4.46707763]
[1759868936566,1.5732611,223.87,223.83,0.71]
[1759868936770,1.5732611,223.86,223.82,4.46787597]
[1759868936977,1.5732611,223.86,223.83,0.71]
[1759868937276,1.5732611,223.86,223.84,0.71]
[1759868937575,1.5732611,223.85,223.82,0.71]
[1759868937776,1.5732611,223.84,223.81,4.46803272]
[1759868937997,1.5732611,223.83,223.81,0.71]
[1759868938479,1.5732611,223.84,223.82,0.71]
[1759868938886,1.5732611,223.85,223.82,0.71]
[1759868939174,5.15687931,223.87,223.79,17.21274552]
[1759868939384,1.5732611,223.85,223.8,0.71]
[1759868939754,3.00809643,223.9,223.82,1.5732611]
[1759868939959,1.5732611,223.89,223.83,2.2832611]
[1759868940155,1.5732611,223.88,223.84,0.71]
[1759868940375,1.5732611,223.88,223.85,0.71]
[1759868940882,1.5732611,223.86,223.83,0.71]
[1759868941357,1.5732611,223.87,223.84,0.71]
[1759868941558,1.5732611,223.87,223.81,1.5732611]
[1759868941559,1.5732611,223.87,223.85,0.71]
[1759868941989,0.69,223.95,223.86,2.2832611]
[1759868942274,1.5732611,223.93,223.87,2.2832611]
[1759868942482,1.5732611,223.93,223.88,0.71]
[1759868942683,1.5732611,223.94,223.89,0.71]
[1759868943268,1.5732611,223.95,223.89,0.71]
[1759868943472,1.5732611,223.95,223.89,2.2832611]
[1759868943662,1.5732611,223.95,223.9,0.71]
[1759868943862,1.5732611,223.95,223.91,4.46608012]
[1759868944062,0.1,223.96,223.92,0.71]
[1759868944286,1.5732611,223.95,223.91,4.46608012]
[1759868944464,1.5732611,223.95,223.92,0.71]
[1759868944785,1.5732611,223.95,223.92,78.80999998]
[1759868945286,0.1,223.96,223.93,0.71]
[1759868945462,0.1,223.96,223.94,0.71]
[1759868946084,0.1,223.96,223.95,0.71]
[1759868946461,0.1,223.96,223.95,2.2832611]
[1759868946980,0.1,223.96,223.95,0.71]
[1759868947368,0.1,223.96,223.95,2.2832611]
[1759868947958,0.1,223.96,223.95,6.74854352]
[1759868950283,0.1,223.96,223.95,5.17528242]
[1759868950583,0.1,223.96,223.95,6.9632716]
[1759868951360,0.1,223.96,223.95,8.5365327]
[1759868953462,0.1,223.96,223.95,6.9632716]
[1759868953663,0.1,223.96,223.95,8.5365327]
[1759868954388,0.1,223.96,223.95,39.6765327]
[1759868958989,0.1,223.96,223.95,6.9232716]
[1759868959189,0.1,223.96,223.95,38.0632716]
[1759868959399,0.1,223.96,223.95,37.3932716]
[1759868959989,0.1,223.96,223.95,38.0632716]
[1759868961907,0.81,223.96,223.94,31.14]
[1759868962189,2.3832611,223.96,223.93,37.39374142]
[1759868962370,2.3832611,223.96,223.93,4.46551244]
[1759868962583,1.5732611,223.94,223.91,4.46429871]
[1759868962770,2.2832611,223.95,223.91,31.14]
[1759868962972,0.1,223.96,223.91,31.14]
[1759868963175,2.2832611,223.95,223.91,31.14]
[1759868963371,1.5732611,223.95,223.91,31.81]
[1759868963689,1.5732611,223.95,223.92,4.46588067]
[1759868964289,2.2832611,223.95,223.92,4.46588067]
[1759868964995,1.5732611,223.95,223.92,4.46588067]
[1759868965197,2.45739703,223.95,223.92,4.46588067]
[1759868965495,2.55739703,223.96,223.92,5.13588067]
[1759868965789,2.45739703,223.93,223.87,21.47]
[1759868966089,3.16739703,223.93,223.88,35.60648978]
[1759868966289,2.45739703,223.93,223.89,0.67]
[1759868966596,2.45739703,223.93,223.89,31.81]
[1759868966782,2.45739703,223.93,223.89,31.14]
[1759868966974,2.45739703,223.93,223.9,0.67]
[1759868967291,2.45739703,223.93,223.9,4.46616156]
[1759868967493,3.16739703,223.93,223.9,4.46616156]
[1759868968399,3.16739703,223.92,223.89,31.14]
[1759868968604,0.71,223.91,223.89,35.60645084]
[1759868968985,2.45739703,223.92,223.89,35.60645084]
[1759868969191,3.16739703,223.92,223.89,35.60645084]
[1759868969699,2.45739703,223.92,223.89,35.60645084]
[1759868970090,2.45739703,223.93,223.89,36.27645084]
[1759868970409,3.16739703,223.93,223.89,36.27645084]
[1759868971304,3.16739703,223.93,223.87,2.45739703]
[1759868971482,2.45739703,223.9,223.86,31.81]
[1759868971998,2.45739703,223.91,223.86,31.81]
[1759868972201,3.16739703,223.91,223.86,36.27705616]
[1759868972501,3.16739703,223.91,223.87,5.13678808]
[1759868972706,2.45739703,223.91,223.87,5.13678808]
[1759868973114,0.71,223.9,223.85,105.13709837]
[1759868973306,0.71,223.9,223.86,0.67]
[1759868973807,2.45739703,223.91,223.86,0.67]
[1759868974104,2.45739703,223.93,223.87,3.12739703]
[1759868974313,2.45739703,223.92,223.87,0.67]
[1759868974681,2.45739703,223.92,223.87,5.13669029]
[1759868974899,3.16739703,223.92,223.87,5.13669029]
[1759868975288,3.16739703,223.92,223.87,4.46669029]
[1759868975488,3.16739703,223.92,223.88,0.67]
[1759868976307,2.45739703,223.91,223.86,31.14]
[1759868976600,2.45739703,223.91,223.87,0.67]
[1759868976805,2.45739703,223.91,223.87,5.13687583]
[1759868978397,5.17590512,223.92,223.88,0.67]
[1759868978599,2.45739703,223.91,223.88,0.67]
[1759868980684,0.71,223.92,223.88,0.67]
[1759868980891,2.45739703,223.91,223.88,0.67]
[1759868981812,3.11739703,223.91,223.87,4.46683932]
[1759868981993,2.45739703,223.91,223.87,5.12683932]
[1759868982312,2.45739703,223.91,223.88,0.66]
[1759868982616,2.45739703,223.91,223.86,5.12707763]
[1759868982789,2.45739703,223.91,223.87,0.66]
[1759868983612,2.45739703,223.91,223.87,5.12684836]
[1759868984811,2.45739703,223.91,223.87,0.66]
[1759868986113,2.45739703,223.91,223.87,5.12685905]
[1759868987192,2.45739703,223.91,223.88,0.7]
[1759868987908,2.45739703,223.91,223.86,4.46707763]
[1759868988110,2.45739703,223.91,223.87,0.7]
[1759868988520,3.11739703,223.91,223.87,0.7]
[1759868989217,3.11739703,223.91,223.87,5.1668381]
[1759868989421,2.45739703,223.91,223.87,5.1668381]
[1759868989719,2.45739703,223.91,223.88,0.7]
[1759868990525,2.45739703,223.91,223.89,0.7]
[1759868990722,2.45739703,223.91,223.88,4.46661202]
[1759868990911,2.45739703,223.91,223.88,5.16661202]
[1759868992224,0.66,223.92,223.88,5.16661202]
[1759868992637,2.45739703,223.91,223.88,5.16661202]
[1759868995922,0.66,223.92,223.88,5.16661202]
[1759868996127,2.45739703,223.91,223.88,5.16661202]
[1759868997134,2.45739703,223.9,223.88,5.16661202]
[1759868999229,2.45739703,223.91,223.88,5.16661202]
[1759869001621,5.12570286,223.93,223.88,5.16661202]
[1759869001828,2.45739703,223.91,223.88,84.36661202]
[1759869002030,2.45739703,223.91,223.89,0.7]
[1759869002226,2.45739703,223.91,223.88,83.66661202]
[1759869002615,2.41991873,223.91,223.88,84.36661202]
[1759869003521,2.41991873,223.91,223.89,0.7]
[1759869003932,2.45739703,223.9,223.88,79.2]
[1759869004121,3.11739703,223.9,223.88,79.2]
[1759869004328,2.45739703,223.9,223.88,79.2]
[1759869004924,23.91739703,223.89,223.81,79.2]
[1759869005124,2.45739703,223.84,223.81,79.2]
[1759869005437,2.45739703,223.84,223.82,0.7]
[1759869007117,2.45739703,223.84,223.81,4.46803376]
[1759869007441,2.45739703,223.84,223.81,5.16803376]
[1759869007617,2.45739703,223.84,223.81,0.7]
[1759869008238,2.45739703,223.84,223.81,5.16803619]
[1759869008744,2.45739703,223.84,223.81,0.7]
[1759869009042,0.66,223.84,223.78,79.9]
[1759869009239,2.45739703,223.83,223.79,31.84]
[1759869009422,2.45739703,223.83,223.8,0.7]
[1759869009743,2.45739703,223.81,223.79,31.14]
[1759869010044,2.45739703,223.81,223.78,31.84]
[1759869010425,2.45739703,223.81,223.78,0.7]
[1759869010619,2.45739703,223.79,223.73,31.14]
[1759869010941,0.66,223.8,223.75,0.7]
[1759869010942,2.45739703,223.78,223.75,0.7]
[1759869011240,2.45739703,223.78,223.76,0.7]
[1759869012146,3.11739703,223.77,223.68,4.67065209]
[1759869012319,3.00518777,223.82,223.7,0.7]
[1759869012644,2.45739703,223.76,223.7,0.7]
[1759869012826,2.45739703,223.76,223.7,3.15739703]
[1759869013136,2.45739703,223.76,223.71,0.7]
[1759869013925,2.45739703,223.76,223.71,5.17002553]
[1759869014127,2.45739703,223.76,223.72,0.7]
[1759869014327,2.45739703,223.75,223.73,0.7]
[1759869014837,4.46893166,223.77,223.73,0.7]
[1759869015030,2.45739703,223.75,223.73,0.7]
[1759869016320,2.45739703,223.74,223.71,0.7]
[1759869016842,2.45739703,223.74,223.72,0.68]
[1759869017145,20.8,223.84,223.73,3.13739703]
[1759869017326,2.45739703,223.82,223.76,2.45739703]
[1759869017524,2.45739703,223.83,223.77,3.13739703]
[1759869017726,2.45739703,223.83,223.78,0.68]